fUST/lending_fUST_20250309
["ID","MTS","AMOUNT","RATE_DAILY","PERIOD"]
[355687878,1741459832242,-1159.6676123,0.00046265,4]
[355687881,1741459832252,-500.0,0.00046273,10]
[355687884,1741459832261,-516.07783657,0.00046273,2]
[355687886,1741459832271,-500.0,0.00046273,10]
[355687888,1741459832281,-500.0,0.00046273,10]
[355687890,1741459832295,-500.0,0.00046273,10]
[355687892,1741459832308,-116132.91554856,0.00046275,2]
[355687895,1741459832319,-18925.66620424,0.00046275,2]
[355687979,1741459837819,-1265.43621274,0.00046201,2]
[355687981,1741459837829,-416.66666667,0.00046201,2]
[355687983,1741459837845,-106.69044765,0.00046264,2]
[355688027,1741459838265,-393.30955235,0.00046264,2]
[355688029,1741459838276,-500.0,0.00046264,2]
[355688031,1741459838286,-500.0,0.00046264,2]
[355688033,1741459838296,-500.0,0.00046264,2]
[355688035,1741459838306,-500.0,0.00046264,2]
[355688037,1741459838316,-500.0,0.00046264,2]
[355688039,1741459838325,-500.0,0.00046264,2]
[355688041,1741459838335,-500.0,0.00046264,2]
[355688043,1741459838345,-32.61814161,0.00046264,2]
[355688188,1741459839939,-562.25684342,0.00046264,2]
[355688190,1741459839949,-500.0,0.00046264,2]
[355688192,1741459839959,-500.0,0.00046264,2]
[355688194,1741459839969,-500.0,0.00046264,2]
[355688196,1741459839978,-500.0,0.00046264,2]
[355688198,1741459839989,-500.0,0.00046264,2]
[355688200,1741459839998,-500.0,0.00046264,2]
[355688202,1741459840008,-500.0,0.00046264,2]
[355688204,1741459840018,-500.0,0.00046264,2]
[355688206,1741459840028,-500.0,0.00046264,2]
[355688208,1741459840038,-500.0,0.00046264,2]
[355688210,1741459840047,-500.0,0.00046264,2]
[355688212,1741459840057,-500.0,0.00046264,2]
[355688214,1741459840067,-500.0,0.00046264,2]
[355688216,1741459840077,-500.0,0.00046264,2]
[355688218,1741459840086,-500.0,0.00046264,2]
[355688220,1741459840096,-500.0,0.00046264,2]
[355688223,1741459840106,-500.0,0.00046264,2]
[355688225,1741459840115,-500.0,0.00046264,2]
[355688227,1741459840125,-500.0,0.00046264,2]
[355688229,1741459840135,-166.82,0.00046265,10]
[355688231,1741459840144,-312.40583061,0.00046274,31]
[355688233,1741459840153,-171.29732596,0.00046275,2]
[355688235,1741459840165,-893.8918,0.00046275,2]
[355688237,1741459840177,-22222.75,0.00046275,2]
[355688479,1741459843023,-5125.0000005,0.00046275,2]
[355688480,1741459843035,-527.25999992,0.00046275,2]
[355688626,1741459845945,-58001.21912082,0.00046275,2]
[355688627,1741459845955,-1024.5,0.000463,30]
[355688628,1741459845965,-808.52,0.000463,30]
[355688629,1741459845975,-999.0,0.00046301,120]
[355688630,1741459845984,-164.12,0.00046364,30]
[355688631,1741459845993,-1570.8878235,0.000465,19]
[355688632,1741459846003,-500.0,0.00046575,120]
[355688633,1741459846012,-500.0,0.00046575,120]
[355688634,1741459846021,-500.0,0.00046575,120]
[355688635,1741459846031,-2540.75,0.00046575,7]
[355688636,1741459846041,-500.0,0.00046575,120]
[355688637,1741459846050,-984.03,0.00046575,120]
[355688638,1741459846060,-500.0,0.00046575,120]
[355688639,1741459846070,-500.0,0.00046575,2]
[355688640,1741459846079,-607.71,0.00046575,120]
[355688641,1741459846089,-500.0,0.00046575,120]
[355688642,1741459846098,-500.0,0.00046849,120]
[355688643,1741459846108,-500.0,0.00046849,120]
[355688644,1741459846118,-2540.75,0.00046849,7]
[355688645,1741459846127,-984.03,0.00046849,120]
[355688646,1741459846136,-500.0,0.00046849,2]
[355688647,1741459846249,-607.71,0.00046849,120]
[355688648,1741459846259,-500.0,0.00046849,120]
[355688649,1741459846268,-231.93352246,0.0004688,4]
[355688650,1741459846278,-16689.522691,0.0004689,4]
[355688651,1741459846288,-1046.656585,0.000469,2]
[355688652,1741459846297,-167.84703923,0.00047114,2]
[355688653,1741459846307,-500.0,0.00047123,120]
[355688654,1741459846315,-500.0,0.00047123,120]
[355688655,1741459846325,-2540.75,0.00047123,7]
[355688656,1741459846335,-999.0,0.00047123,120]
[355688657,1741459846344,-984.03,0.00047123,120]
[355688658,1741459846353,-500.0,0.00047123,2]
[355688659,1741459846363,-607.71,0.00047123,120]
[355688660,1741459846372,-500.0,0.00047123,120]
[355688661,1741459846382,-500.0,0.00047397,120]
[355688662,1741459846391,-500.0,0.00047397,120]
[355688663,1741459846404,-2540.75,0.00047397,7]
[355688664,1741459846414,-984.03,0.00047397,120]
[355688665,1741459846423,-500.0,0.00047397,2]
[355688666,1741459846433,-607.71,0.00047397,120]
[355688667,1741459846442,-500.0,0.00047397,120]
[355688668,1741459846451,-500.0,0.00047671,120]
[355688669,1741459846461,-500.0,0.00047671,120]
[355688670,1741459846470,-2540.75,0.00047671,7]
[355688671,1741459846482,-984.03,0.00047671,120]
[355688672,1741459846492,-500.0,0.00047671,2]
[355688673,1741459846502,-607.71,0.00047671,120]
[355688674,1741459846511,-500.0,0.00047671,120]
[355688675,1741459846520,-164.12,0.00047734,30]
[355688676,1741459846530,-157.926669,0.00047922,2]
[355688677,1741459846539,-568.0650498,0.00047945,120]
[355688678,1741459846548,-500.0,0.00047945,120]
[355688679,1741459846557,-2540.75,0.00047945,7]
[355688680,1741459846567,-999.0,0.00047945,120]
[355688681,1741459846577,-984.03,0.00047945,120]
[355688682,1741459846586,-500.0,0.00047945,2]
[355688683,1741459846597,-607.71,0.00047945,120]
[355688684,1741459846606,-500.0,0.00047945,120]
[355688685,1741459846620,-1112.00057768,0.00047984,28]
[355688686,1741459846630,-594.0,0.00048,120]
[355688687,1741459846640,-350.38429627,0.00048,120]
[355688688,1741459846650,-170.0,0.00048,90]
[355688689,1741459846659,-177.702155,0.0004802,120]
[355688690,1741459846668,-157.926669,0.0004802,120]
[355688691,1741459846677,-167.84703923,0.00048028,2]
[355688692,1741459846687,-500.0,0.00048212,30]
[355688693,1741459846697,-500.0,0.00048219,120]
[355688694,1741459846707,-2540.75,0.00048219,7]
[355688695,1741459846716,-984.03,0.00048219,120]
[355688696,1741459846726,-500.0,0.00048219,2]
[355688697,1741459846735,-607.71,0.00048219,120]
[355688698,1741459846745,-500.0,0.00048219,120]
[355688699,1741459846754,-231.93352246,0.0004827,4]
[355688700,1741459846764,-500.0,0.00048273,10]
[355688701,1741459846773,-500.0,0.00048273,10]
[355688702,1741459846783,-500.0,0.00048273,10]
[355688703,1741459846792,-500.0,0.00048273,10]
[355688704,1741459846802,-500.0,0.00048273,10]
[355688705,1741459846813,-16689.522691,0.0004828,4]
[355688706,1741459846822,-231.93352246,0.0004828,4]
[355688707,1741459846832,-55555.0,0.0004829,120]
[355688708,1741459846841,-153.74,0.000483,45]
[355688709,1741459846851,-153.74,0.000483,45]
[355688710,1741459846860,-16689.522691,0.00048363,4]
[355688711,1741459846870,-222.81454842,0.00048375,30]
[355688712,1741459846879,-2613.269436,0.000484,60]
[355688713,1741459846888,-231.93352246,0.00048455,4]
[355688714,1741459846898,-1000.0,0.00048465,120]
[355688715,1741459846908,-1000.0,0.00048465,120]
[355688716,1741459846917,-1000.0,0.00048465,120]
[355688717,1741459846926,-1000.0,0.00048465,120]
[355688718,1741459846935,-1000.0,0.00048465,120]
[355688719,1741459846945,-1000.0,0.00048465,120]
[355688720,1741459846954,-1000.0,0.00048465,120]
[355688721,1741459846964,-1000.0,0.00048465,120]
[355688722,1741459846973,-1000.0,0.00048465,120]
[355688723,1741459846983,-1000.0,0.00048465,120]
[355688724,1741459846993,-1000.0,0.00048465,120]
[355688725,1741459847002,-1000.0,0.00048465,120]
[355688727,1741459847011,-538.58415534,0.00048465,120]
[355688728,1741459847020,-500.0,0.00048493,120]
[355688729,1741459847030,-2540.75,0.00048493,7]
[355688730,1741459847039,-984.03,0.00048493,120]
[355688731,1741459847049,-500.0,0.00048493,2]
[355688732,1741459847059,-607.71,0.00048493,120]
[355688733,1741459847068,-170.27870385,0.00048493,120]
[355688734,1741459847078,-2500.0,0.000485,120]
[355688735,1741459847087,-162.45386,0.00048527,2]
[355688736,1741459847097,-436.922489,0.00048597,4]
[355688737,1741459847106,-157.926669,0.000486,7]
[355688738,1741459847115,-1024.5,0.000486,30]
[355688739,1741459847125,-808.52,0.000486,30]
[355688740,1741459847134,-2500.0,0.0004875,120]
[355688741,1741459847143,-500.0,0.00048767,120]
[355688742,1741459847152,-1638.47712998,0.00048767,7]
[355688745,1741459872363,999.0,0.00043835,120]
[355688746,1741459872791,999.0,0.00044657,120]
[355688747,1741459882707,351.30122109,0.00040461,2]
[355688748,1741459935502,2500.000001,0.00043836,10]
[355689310,1741460734177,-226.0,0.00035789,2]
[355689311,1741460734199,-3.01395536,0.0003579,2]
[355689312,1741460745088,-1329.25455153,0.0003579,2]
[355689313,1741460829116,-2606.32059361,0.0003579,2]
[355689314,1741460835085,-249.80973142,0.0003579,2]
[355689315,1741460838092,-3766.98303771,0.0003579,2]
[355689316,1741460848098,-6959.27562073,0.0003579,2]
[355689317,1741460848121,-160.35,0.0003588,2]
[355689318,1741460848142,-162.45386,0.0003589,2]
[355689319,1741460848164,-1403.35136386,0.000369,7]
[355689320,1741460848187,-965.748892,0.00039282,2]
[355689321,1741460848209,-187.0,0.00039686,2]
[355689322,1741460848230,-10000.0,0.00039686,2]
[355689323,1741460848252,-214.3771458,0.00039781,2]
[355689324,1741460848274,-391.369888,0.00039902,2]
[355689325,1741460848296,-315.18036066,0.00040002,2]
[355689326,1741460848317,-965.748892,0.00040124,2]
[355689327,1741460848338,-250.0,0.00040352,2]
[355689328,1741460848359,-150.44,0.00040672,2]
[355689329,1741460848380,-965.748892,0.00040965,2]
[355689330,1741460848404,-740.38392717,0.00041072,2]
[355689331,1741460848427,-740.38392717,0.00041072,2]
[355689332,1741460848451,-740.38392717,0.00041072,2]
[355689333,1741460848474,-740.38392717,0.00041072,2]
[355689334,1741460848496,-740.38392717,0.00041072,2]
[355689335,1741460848518,-740.38392717,0.00041072,2]
[355689336,1741460848542,-740.38392717,0.00041072,2]
[355689337,1741460848564,-740.38392717,0.00041072,2]
[355689338,1741460848586,-740.38392717,0.00041072,2]
[355689339,1741460848608,-740.38392717,0.00041072,2]
[355689340,1741460848631,-740.38392717,0.00041072,2]
[355689341,1741460848654,-740.38392717,0.00041072,2]
[355689342,1741460848676,-740.38392717,0.00041072,2]
[355689343,1741460848700,-740.38392717,0.00041072,2]
[355689344,1741460848725,-740.38392717,0.00041072,2]
[355689345,1741460848748,-740.38392717,0.00041072,2]
[355689346,1741460848771,-740.38392717,0.00041072,2]
[355689347,1741460848795,-210.41782947,0.00041072,2]
[355689348,1741460849081,-529.9660977,0.00041072,2]
[355689349,1741460849104,-740.38392717,0.00041072,2]
[355689350,1741460849126,-740.38392717,0.00041072,2]
[355689351,1741460849149,-199.6586495,0.00041072,2]
[355689363,1741460945090,-1403.17457434,0.000409,8]
[355689364,1741460945112,-168.18635838,0.00040961,120]
[355689365,1741460945133,-330.83388137,0.00040972,2]
[355689366,1741460945156,-2843.7777472,0.00041061,2]
[355689367,1741460945180,-2843.7777472,0.00041061,2]
[355689368,1741460945204,-2843.7777472,0.00041061,2]
[355689369,1741460945228,-2843.7777472,0.00041061,2]
[355689370,1741460945250,-2843.7777472,0.00041061,2]
[355689371,1741460945275,-2843.7777472,0.00041061,2]
[355689372,1741460945299,-2843.7777472,0.00041061,2]
[355689373,1741460945322,-2843.7777472,0.00041061,2]
[355689374,1741460945345,-2843.7777472,0.00041061,2]
[355689375,1741460945369,-2843.7777472,0.00041061,2]
[355689376,1741460945392,-2843.7777472,0.00041061,2]
[355689377,1741460945415,-2843.7777472,0.00041061,2]
[355689378,1741460945443,-2843.7777472,0.00041061,2]
[355689379,1741460945465,-2843.7777472,0.00041061,2]
[355689380,1741460945487,-2843.7777472,0.00041061,2]
[355689381,1741460945511,-2843.7777472,0.00041061,2]
[355689382,1741460945533,-2843.7777472,0.00041061,2]
[355689383,1741460945555,-2843.7777472,0.00041061,2]
[355689384,1741460945577,-2843.7777472,0.00041061,2]
[355689385,1741460945599,-2843.7777472,0.00041061,2]
[355689386,1741460945622,-2843.7777472,0.00041061,2]
[355689387,1741460945644,-2843.7777472,0.00041061,2]
[355689388,1741460945667,-2843.7777472,0.00041061,2]
[355689389,1741460945690,-2843.7777472,0.00041061,2]
[355689390,1741460945712,-2843.7777472,0.00041061,2]
[355689391,1741460945736,-2843.7777472,0.00041061,2]
[355689392,1741460945762,-2843.7777472,0.00041061,2]
[355689393,1741460945786,-2843.7777472,0.00041061,2]
[355689394,1741460945808,-2843.7777472,0.00041061,2]
[355689395,1741460945833,-2843.7777472,0.00041061,2]
[355689396,1741460945856,-2843.7777472,0.00041061,2]
[355689397,1741460945879,-2843.7777472,0.00041061,2]
[355689398,1741460945901,-2843.7777472,0.00041061,2]
[355689399,1741460945924,-2843.7777472,0.00041061,2]
[355689400,1741460945946,-2843.7777472,0.00041061,2]
[355689401,1741460945968,-2843.7777472,0.00041061,2]
[355689402,1741460945991,-2843.7777472,0.00041061,2]
[355689403,1741460946015,-2843.7777472,0.00041061,2]
[355689404,1741460946038,-2843.7777472,0.00041061,2]
[355689405,1741460946064,-2843.7777472,0.00041061,2]
[355689406,1741460946088,-2843.7777472,0.00041061,2]
[355689407,1741460946114,-2843.7777472,0.00041061,2]
[355689408,1741460946138,-2843.7777472,0.00041061,2]
[355689409,1741460946162,-2843.7777472,0.00041061,2]
[355689410,1741460946187,-2843.7777472,0.00041061,2]
[355689411,1741460946211,-2843.7777472,0.00041061,2]
[355689412,1741460946234,-2843.7777472,0.00041061,2]
[355689413,1741460946257,-2843.7777472,0.00041061,2]
[355689414,1741460946279,-2843.7777472,0.00041061,2]
[355689415,1741460946301,-2843.7777472,0.00041061,2]
[355689416,1741460946323,-2843.7777472,0.00041061,2]
[355689417,1741460946346,-2843.7777472,0.00041061,2]
[355689418,1741460946370,-2843.7777472,0.00041061,2]
[355689419,1741460946393,-2843.7777472,0.00041061,2]
[355689420,1741460946416,-2843.7777472,0.00041061,2]
[355689421,1741460946439,-2843.7777472,0.00041061,2]
[355689422,1741460946463,-2843.7777472,0.00041061,2]
[355689423,1741460946486,-2843.7777472,0.00041061,2]
[355689424,1741460946509,-2843.7777472,0.00041061,2]
[355689425,1741460946531,-2843.7777472,0.00041061,2]
[355689426,1741460946554,-2843.7777472,0.00041061,2]
[355689427,1741460946576,-2843.7777472,0.00041061,2]
[355689428,1741460946599,-2833.6213981,0.00041061,2]
[355689429,1741460946621,-2833.6213981,0.00041061,2]
[355689430,1741460946645,-2833.6213981,0.00041061,2]
[355689431,1741460946668,-2833.6213981,0.00041061,2]
[355689432,1741460946690,-2833.6213981,0.00041061,2]
[355689433,1741460946712,-2833.6213981,0.00041061,2]
[355689434,1741460946735,-2833.6213981,0.00041061,2]
[355689435,1741460946760,-2833.6213981,0.00041061,2]
[355689436,1741460946783,-2833.6213981,0.00041061,2]
[355689437,1741460946809,-2833.6213981,0.00041061,2]
[355689438,1741460946836,-2105.19076889,0.00041061,2]
[355689439,1741460947014,-728.43062921,0.00041061,2]
[355689440,1741460947040,-1392.26586815,0.00041061,2]
[355689441,1741460947090,-1441.35552995,0.00041061,2]
[355689442,1741460947115,-2833.6213981,0.00041061,2]
[355689443,1741460947139,-2833.6213981,0.00041061,2]
[355689444,1741460947165,-2833.6213981,0.00041061,2]
[355689445,1741460947188,-2833.6213981,0.00041061,2]
[355689446,1741460947224,-2833.6213981,0.00041061,2]
[355689447,1741460947251,-2833.6213981,0.00041061,2]
[355689448,1741460947275,-2833.6213981,0.00041061,2]
[355689449,1741460947299,-2833.6213981,0.00041061,2]
[355689450,1741460947323,-2833.6213981,0.00041061,2]
[355689451,1741460947347,-2833.6213981,0.00041061,2]
[355689452,1741460947370,-2833.6213981,0.00041061,2]
[355689453,1741460947393,-2833.6213981,0.00041061,2]
[355689454,1741460947417,-2833.6213981,0.00041061,2]
[355689455,1741460947441,-2833.6213981,0.00041061,2]
[355689456,1741460947465,-2833.6213981,0.00041061,2]
[355689457,1741460947489,-2833.6213981,0.00041061,2]
[355689458,1741460947513,-69177.3398961,0.00041062,3]
[355689459,1741460947536,-321.91264422,0.00041062,3]
[355689460,1741460947558,-218.68408142,0.00041071,31]
[355689461,1741460947580,-500.0,0.00041073,5]
[355689462,1741460947602,-500.0,0.00041073,5]
[355689463,1741460947623,-500.0,0.00041073,2]
[355689464,1741460947646,-600.0,0.0004116,2]
[355689465,1741460947671,-312.3129368,0.00041173,10]
[355689466,1741460947699,-500.0,0.00041173,10]
[355689467,1741460947723,-416.66666667,0.00041178,3]
[355689468,1741460947749,-17294.334974,0.00041178,3]
[355689469,1741460947775,-24900.0,0.00041188,2]
[355689470,1741460947800,-819.6,0.000412,30]
[355689471,1741460947824,-646.81,0.000412,30]
[355689472,1741460947846,-6443.95267138,0.00041287,2]
[355689473,1741460947868,-622.2,0.00041708,2]
[355689474,1741460947890,-422.63307954,0.00041736,2]
[355689475,1741460947912,-965.748892,0.00041807,2]
[355689476,1741460947935,-150.44,0.00042042,30]
[355689477,1741460947960,-645.2214,0.00042256,2]
[355689478,1741460947982,-965.748892,0.00042649,2]
[355689479,1741460948003,-187.0,0.00042686,2]
[355689480,1741460948026,-739.74319536,0.00042804,2]
[355689481,1741460948047,-150.44,0.00043412,30]
[355689482,1741460948068,-965.748892,0.00043491,2]
[355689483,1741460948090,-162.45386,0.00043667,2]
[355689484,1741460948113,-999.0,0.00043835,120]
[355689485,1741460948137,-965.748892,0.00044332,2]
[355689486,1741460948162,-713.36965893,0.00044657,120]
[355689487,1741460950104,-1951.65318,0.00035844,2]
[355689488,1741460950126,-1192.79139944,0.00040961,28]
[355689489,1741460954194,1192.7913994,0.00043524,28]
[355689490,1741460958951,737.64,0.000411,30]
[355689491,1741460961208,97.70006457,0.000411,30]
[355689492,1741460961227,484.42993543,0.000411,30]
[355689493,1741460965756,380.0,0.00042645,120]
[355689515,1741461032345,-285.63034107,0.00044657,120]
[355689516,1741461032355,-10000.0,0.00045,30]
[355689517,1741461032364,-737.64,0.00045,30]
[355689518,1741461032507,-582.13,0.00045,30]
[355689519,1741461032519,-198.93564907,0.00045074,2]
[355689520,1741461032528,-965.748892,0.00045174,2]
[355689521,1741461032538,-999.0,0.00045479,120]
[355689522,1741461032547,-162.66,0.00045998,30]
[355689523,1741461032557,-187.0,0.00046,2]
[355689524,1741461032566,-3748.51069333,0.00046,120]
[355689525,1741461032575,-965.748892,0.00046016,2]
[355689526,1741461032585,-198.93564905,0.00046031,2]
[355689527,1741461032594,-654.93929759,0.00046086,28]
[355689528,1741461032606,-537.85210181,0.00046086,28]
[355689529,1741461032615,-416.66666667,0.00046194,2]
[355689530,1741461032625,-999.0,0.00046301,120]
[355689531,1741461032635,-1570.8878235,0.000465,19]
[355689532,1741461032644,-500.0,0.00046552,2]
[355689533,1741461032654,-17294.334974,0.00046565,4]
[355689534,1741461032663,-500.0,0.00046575,120]
[355689535,1741461032672,-216.7461085,0.00046575,120]
[355689536,1741461032681,-178.90692163,0.00046575,120]
[355689537,1741461032690,-500.0,0.00046575,120]
[355689538,1741461032700,-500.0,0.00046575,5]
[355689539,1741461032709,-1804.94,0.00046575,7]
[355689540,1741461032718,-500.0,0.00046575,120]
[355689541,1741461032728,-656.02,0.00046575,120]
[355689542,1741461032737,-500.0,0.00046575,120]
[355689543,1741461032747,-500.0,0.00046575,2]
[355689544,1741461032757,-645.92,0.00046575,120]
[355689545,1741461032767,-612.43193101,0.00046613,7]
[355689546,1741461032780,-422.63307954,0.00046736,2]
[355689547,1741461032790,-500.0,0.00046849,120]
[355689548,1741461032799,-1804.94,0.00046849,7]
[355689549,1741461032810,-500.0,0.00046849,120]
[355689550,1741461032820,-656.02,0.00046849,120]
[355689551,1741461032830,-500.0,0.00046849,120]
[355689552,1741461032839,-644.67599694,0.00046849,2]
[355689553,1741461032851,-645.92,0.00046849,120]
[355689554,1741461032860,-965.748892,0.00046858,2]
[355689555,1741461032870,-500.0,0.00046967,10]
[355689556,1741461032879,-198.93564905,0.00046987,2]
[355689557,1741461032889,-737.64,0.00047,30]
[355689558,1741461032898,-582.13,0.00047,30]
[355689559,1741461032908,-500.0,0.00047123,120]
[355689560,1741461032919,-1804.94,0.00047123,7]
[355689561,1741461032928,-405.92799532,0.00047123,120]
[355689562,1741461032938,-999.0,0.00047123,120]
[355689563,1741461032947,-656.02,0.00047123,120]
[355689564,1741461032957,-500.0,0.00047123,120]
[355689565,1741461032966,-645.92,0.00047123,120]
[355689566,1741461032975,-500.0,0.00047125,10]
[355689567,1741461032984,-500.0,0.00047125,10]
[355689568,1741461032994,-505.56421447,0.0004716,10]
[355689569,1741461033003,-162.66,0.00047368,30]
[355689570,1741461033012,-500.0,0.00047397,120]
[355689571,1741461033022,-1804.94,0.00047397,7]
[355689572,1741461033032,-656.02,0.00047397,120]
[355689573,1741461033042,-500.0,0.00047397,120]
[355689574,1741461033052,-645.92,0.00047397,120]
[355689575,1741461033061,-347.50311749,0.00047671,120]
[355689576,1741461033071,-1804.94,0.00047671,7]
[355689577,1741461033080,-656.02,0.00047671,120]
[355689578,1741461033090,-500.0,0.00047671,120]
[355689579,1741461033099,-645.92,0.00047671,120]
[355689580,1741461033109,-965.748892,0.00047699,2]
[355689581,1741461033118,-198.93564905,0.00047944,2]
[355689582,1741461033127,-1804.94,0.00047945,7]
[355689583,1741461033137,-999.0,0.00047945,120]
[355689584,1741461033146,-656.02,0.00047945,120]
[355689585,1741461033156,-500.0,0.00047945,120]
[355689586,1741461033165,-645.92,0.00047945,120]
[355689587,1741461033175,-500.0,0.00047999,30]
[355689588,1741461033185,-500.0,0.00048,10]
[355689589,1741461033194,-500.0,0.00048,10]
[355689590,1741461033205,-500.0,0.00048,10]
[355689591,1741461033215,-500.0,0.00048,10]
[355689592,1741461033225,-327.6918667,0.00048031,4]
[355689593,1741461033235,-1804.94,0.00048219,7]
[355689594,1741461033245,-656.02,0.00048219,120]
[355689595,1741461033255,-500.0,0.00048219,120]
[355689596,1741461033266,-645.92,0.00048219,120]
[355689597,1741461033276,-151.0,0.000483,21]
[355689598,1741461033285,-153.75,0.000483,45]
[355689599,1741461033295,-153.75,0.000483,45]
[355689600,1741461033305,-500.0,0.0004835,100]
[355689601,1741461033316,-500.0,0.0004845,97]
[355689602,1741461033325,-1804.94,0.00048493,7]
[355689603,1741461033337,-656.02,0.00048493,120]
[355689604,1741461033347,-500.0,0.00048493,120]
[355689605,1741461033356,-645.92,0.00048493,120]
[355689606,1741461033366,-965.748892,0.00048541,2]
[355689607,1741461033375,-500.0,0.0004855,93]
[355689608,1741461033385,-834.13,0.0004858,10]
[355689609,1741461033395,-17294.334974,0.0004859,4]
[355689610,1741461033404,-4934.55794564,0.000486,120]
[355689611,1741461033414,-1192.7913994,0.00048649,28]
[355689612,1741461033424,-500.0,0.0004865,100]
[355689613,1741461033433,-162.66,0.00048738,30]
[355689614,1741461033443,-500.0,0.0004875,100]
[355689615,1741461033452,-1804.94,0.00048767,7]
[355689616,1741461033462,-999.0,0.00048767,120]
[355689617,1741461033471,-656.02,0.00048767,120]
[355689618,1741461033481,-500.0,0.00048767,120]
[355689619,1741461033491,-645.92,0.00048767,120]
[355689620,1741461033500,-30000.0,0.000488,2]
[355689621,1741461033510,-153.078857,0.0004882,31]
[355689622,1741461033519,-17294.334974,0.00048821,4]
[355689623,1741461033529,-55555.0,0.00048831,120]
[355689624,1741461033539,-500.0,0.0004885,98]
[355689625,1741461033550,-198.93564905,0.000489,2]
[355689626,1741461033560,-86471.6748701,0.00048931,4]
[355689627,1741461033569,-321.91264422,0.00048931,4]
[355689628,1741461033579,-108745.28046146,0.00048941,2]
[355689629,1741461034392,-3987.5543896,0.00048941,2]
[355689630,1741461034471,-7846.09116462,0.00048941,2]
[355689636,1741461038131,-351.30122109,0.00048,10]
[355689637,1741461038143,-148.69877891,0.00048,10]
[355689638,1741461038153,-8871.05878097,0.00048941,2]
[355689639,1741461038570,-25.44599504,0.00048941,2]
[355689679,1741461040115,-92524.56920831,0.00048941,2]
[355689681,1741461040125,-500.0,0.0004895,96]
[355689683,1741461040134,-254.256,0.00048979,2]
[355689685,1741461040144,-280.16,0.00048979,2]
[355689687,1741461040153,-150.59,0.00048979,2]
[355689689,1741461040163,-214.60842948,0.00048989,4]
[355689691,1741461040173,-1000.0,0.00049,120]
[355689693,1741461040182,-29973.52017459,0.00049,120]
[355689695,1741461040192,-3927.36132135,0.00049,120]
[355689697,1741461040201,-7263.0,0.00049,2]
[355689699,1741461040210,-151.0,0.00049,120]
[355689701,1741461040219,-254.354214,0.00049,120]
[355689703,1741461040230,-151.0,0.00049,120]
[355689705,1741461040239,-737.64,0.00049,30]
[355689707,1741461040248,-582.13,0.00049,30]
[355689709,1741461040259,-151.0,0.00049011,2]
[355689712,1741461040268,-151.930998,0.00049021,7]
[355689714,1741461040277,-209.569208,0.0004903,120]
[355689716,1741461040287,-209.569208,0.0004903,120]
[355689718,1741461040296,-520.94119737,0.00049041,2]
[355689720,1741461040305,-1804.94,0.00049041,7]
[355689721,1741461040315,-656.02,0.00049041,120]
[355689735,1741461040425,-165.232319,0.00049041,120]
[355689737,1741461040434,-165.232319,0.00049041,120]
[355689739,1741461040443,-500.0,0.00049041,120]
[355689741,1741461040453,-645.92,0.00049041,120]
[355689743,1741461040463,-500.0,0.0004905,96]
[355689745,1741461040472,-151.0,0.0004905,120]
[355689747,1741461040481,-151.0,0.0004905,120]
[355689749,1741461040490,-385.367797,0.0004905,120]
[355689751,1741461040500,-385.367797,0.0004905,120]
[355689753,1741461040509,-151.0,0.0004905,120]
[355689755,1741461040519,-967.170186,0.0004905,120]
[355689757,1741461040528,-967.170186,0.0004905,120]
[355689759,1741461040537,-11222.89298294,0.00049051,30]
[355689761,1741461040547,-2938.81322434,0.00049052,30]
[355689763,1741461040557,-2938.81322434,0.00049052,30]
[355689765,1741461040566,-3610.34561707,0.00049052,30]
[355689767,1741461040576,-3610.34561707,0.00049052,30]
[355689769,1741461040585,-796.31731729,0.00049052,30]